bitfinex/quotes_ETHUSD_20220115
["timestamp","ask_amount","ask_price","bid_price","bid_amount"]
[1642227497837,0.00397896,3315.6,3315.0,6.09324946]
[1642227498038,1.50939153,3315.8,3315.1,2.84204946]
[1642227498039,0.00341054,3315.5,3315.1,2.84204946]
[1642227498486,0.00284211,3315.4,3315.1,3.44204946]
[1642227498686,0.00284211,3315.4,3315.2,17.67]
[1642227498887,0.00227369,3315.3,3315.2,17.67]
[1642227499194,0.00227369,3315.3,3315.2,19.83444775]
[1642227499387,1.46166522,3315.8,3315.2,19.83444775]
[1642227499788,0.00227369,3315.7,3315.2,19.83444775]
[1642227499990,0.00227369,3315.7,3315.2,1.41043775]
[1642227500194,0.00170527,3315.6,3315.2,1.41043775]
[1642227500391,0.00170527,3315.6,3315.4,3.09738796]
[1642227500591,0.00113685,3315.5,3315.4,3.09738796]
[1642227502069,1.54190312,3315.5,3315.4,3.09738796]
[1642227502259,1.09573207,3315.3,3314.8,5.0590357]
[1642227502457,1.09573207,3315.3,3314.8,1.3759357]
[1642227502657,1.0,3315.4,3314.9,0.00227369]
[1642227503058,0.00113685,3315.5,3314.9,0.00227369]
[1642227503656,0.00113685,3315.5,3314.9,2.58180368]
[1642227504059,1.46171087,3315.7,3315.0,0.00170527]
[1642227504257,1.46171087,3315.7,3315.0,0.30170527]
[1642227504465,1.46171087,3315.7,3315.0,0.30284212]
[1642227504657,1.0,3316.0,3315.1,0.0022737]
[1642227505060,2.69263738,3315.8,3315.1,0.0022737]
[1642227505457,1.00113684,3315.7,3315.1,0.0022737]
[1642227505884,1.00113684,3315.7,3314.9,0.00341054]
[1642227506084,1.00113684,3315.7,3315.1,2.57952999]
[1642227506584,1.00113684,3315.7,3315.2,0.00170527]
[1642227506988,0.00113684,3315.7,3315.2,0.00170527]
[1642227508088,0.00113684,3315.7,3315.0,0.00284212]
[1642227512558,0.00113684,3315.7,3315.0,2.940204]
[1642227512857,0.00113684,3315.7,3315.0,0.60284212]
[1642227513059,0.00113684,3315.7,3315.1,0.0022737]
[1642227514483,0.00113684,3315.7,3315.1,2.58180369]
[1642227514885,0.00113684,3315.7,3315.2,0.00170527]
[1642227523689,0.00113684,3315.7,3315.0,0.00284212]
[1642227524539,0.00113684,3315.7,3315.6,3.09738796]
[1642227525335,0.00113684,3315.7,3315.6,2.57952999]
[1642227525536,2.75568929,3315.7,3315.6,2.57952999]
[1642227525736,0.00113684,3315.7,3315.6,2.57952999]
[1642227525937,1.00113684,3315.7,3315.6,2.57952999]
[1642227526135,0.00113684,3315.7,3315.6,2.57952999]
[1642227527543,0.00113684,3315.7,3315.6,5.67691795]
[1642227528687,0.00113684,3315.7,3315.6,2.57952999]
[1642227529384,0.00113684,3315.7,3315.2,1.2421]
[1642227529787,0.00113684,3315.7,3315.3,0.00113685]
[1642227531089,0.00113684,3315.7,3315.4,1.22700249]
[1642227535345,1.0,3316.0,3315.3,0.00113685]
[1642227535799,0.00227369,3315.9,3315.3,0.00113685]
[1642227536199,0.00170527,3315.8,3315.3,0.00113685]
[1642227536600,0.00113684,3315.7,3315.3,0.00113685]
[1642227540640,0.00113684,3315.7,3315.6,1.41985469]
[1642227541035,0.00113684,3315.7,3315.6,3.14204946]
[1642227541235,0.00113684,3315.7,3315.6,0.3]
[1642227541636,0.00113684,3315.7,3315.5,0.045463]
[1642227542039,0.00113684,3315.7,3315.6,5.17898778]
[1642227542235,0.00113684,3315.7,3315.6,5.47898778]
[1642227542436,0.00113684,3315.7,3315.6,4.29541388]
[1642227543791,0.00113684,3315.7,3315.6,5.04928388]
[1642227543991,0.00113684,3315.7,3315.6,4.8702961]
[1642227544594,0.00113684,3315.7,3315.6,25.19469523]
[1642227545895,0.00113684,3315.7,3315.6,27.77360901]
[1642227546295,0.00113684,3315.7,3315.6,10.10360901]
[1642227548845,0.00113684,3315.7,3315.6,9.34973901]
[1642227549646,0.00113684,3315.7,3315.6,6.94973901]
[1642227549850,0.00113684,3315.7,3315.6,3.69533988]
[1642227550047,0.00113684,3315.7,3315.6,6.35391363]
[1642227550246,0.00113684,3315.7,3315.6,7.19533988]
[1642227550446,0.00113684,3315.7,3315.6,6.37242577]
[1642227550696,0.00113684,3315.7,3315.6,3.69533988]
[1642227551088,0.00113684,3315.7,3315.6,4.29533988]
[1642227551289,0.00113684,3315.7,3315.6,24.65745273]
[1642227554542,0.00113684,3315.7,3315.6,21.96533988]
[1642227554941,0.00113684,3315.7,3315.6,4.29533988]
[1642227555741,0.00113684,3315.7,3315.6,6.95965043]
[1642227555941,0.00113684,3315.7,3315.6,24.62965043]
[1642227556441,0.00113684,3315.7,3315.6,21.96533988]
[1642227557043,0.00113684,3315.7,3315.6,21.36533988]
[1642227557241,0.00113684,3315.7,3315.6,3.69533988]
[1642227557442,0.00113684,3315.7,3315.6,21.36533988]
[1642227558289,0.00113684,3315.7,3315.6,21.96533988]
[1642227558700,0.00113684,3315.7,3315.6,25.07972988]
[1642227558890,2.50998097,3317.0,3315.7,5.95]
[1642227559092,1.50998097,3317.0,3316.3,1.5074598]
[1642227559290,1.50998097,3317.0,3316.7,0.045463]
[1642227559490,1.50998097,3317.0,3316.8,1.36797767]
[1642227559689,1.50998097,3317.0,3316.9,1.46650467]
[1642227560090,1.51737048,3317.0,3316.9,1.46650467]
[1642227560289,1.51737048,3317.0,3316.9,1.76650467]
[1642227560490,1.51737048,3317.0,3316.9,2.06650467]
[1642227560990,0.00738951,3317.0,3316.9,1.46650467]
[1642227566392,0.00738951,3317.0,3316.6,4.2309]
[1642227566597,0.00738951,3317.0,3316.2,2.36874367]
[1642227566793,0.00682108,3316.9,3316.2,2.36874367]
[1642227566993,1.33362502,3317.2,3316.2,2.36874367]
[1642227566994,0.96682909,3317.2,3316.2,2.36874367]
[1642227567193,0.00795793,3317.1,3316.3,0.00341054]
[1642227567595,1.16610518,3316.9,3316.3,0.00341054]
[1642227567994,2.72340204,3316.9,3316.0,0.00511581]
[1642227568196,1.16610518,3316.9,3316.0,17.67511581]
[1642227568396,1.0,3316.8,3316.0,18.83342815]
[1642227568597,1.16610518,3316.9,3316.1,0.00454738]
[1642227569200,2.16610518,3316.9,3316.1,0.00454738]
[1642227569447,1.16610518,3316.9,3316.1,0.00454738]
[1642227569643,2.16610518,3316.9,3316.0,1.11987107]
[1642227569843,1.16610518,3316.9,3316.0,2.37336625]
[1642227570047,2.16610518,3316.9,3316.1,0.00454738]
[1642227572153,2.16610518,3316.9,3316.1,17.67454738]
[1642227572352,1.0,3316.9,3316.1,18.42834738]
[1642227572548,1.50998097,3317.0,3316.6,0.045463]
[1642227572749,1.50998097,3317.0,3316.9,0.045463]
[1642227573199,0.00795793,3317.1,3316.9,0.045463]
[1642227573591,0.00795793,3317.1,3317.0,2.62953211]
[1642227573790,0.00795793,3317.1,3317.0,2.92953211]
[1642227574594,0.00795793,3317.1,3317.0,3.01791616]
[1642227574795,0.00795793,3317.1,3317.0,0.3]
[1642227574993,0.00795793,3317.1,3317.0,2.71711619]
[1642227575395,0.00795793,3317.1,3317.0,3.01711619]
[1642227576296,0.00795793,3317.1,3317.0,2.71711619]
[1642227576497,0.00795793,3317.1,3317.0,3.01711619]
[1642227577337,0.00795793,3317.1,3317.0,23.595944]
[1642227577539,1.50951546,3318.0,3317.2,17.67]
[1642227577740,1.50951546,3318.0,3317.9,0.045463]
[1642227578139,0.7534348,3319.9,3318.0,4.94825161]
[1642227578339,6.21,3320.1,3318.6,0.045463]
[1642227578340,8.14382,3320.1,3318.6,0.045463]
[1642227578539,8.14382,3320.1,3319.8,0.045463]
[1642227578540,6.16,3320.1,3319.8,0.045463]
[1642227578838,3.6773,3320.4,3319.8,0.045463]
[1642227578839,6.21,3319.9,3319.8,0.045463]
[1642227579040,2.2840286,3320.6,3319.8,0.045463]
[1642227579239,0.01023163,3320.1,3319.8,0.045463]
[1642227579739,0.0096632,3320.0,3318.7,26.5251647]
[1642227579938,3.0372486,3320.6,3319.1,1.20898713]
[1642227580137,0.01472971,3320.0,3319.1,1.20898713]
[1642227580339,0.01472971,3320.0,3319.2,0.00454739]
[1642227580794,1.50888735,3319.4,3319.2,0.00454739]
[1642227582294,1.0,3319.9,3319.2,0.00454739]
[1642227582493,1.0,3319.9,3318.8,0.00682108]
[1642227582894,1.50870523,3319.8,3318.8,0.00682108]
[1642227583097,1.54084846,3319.2,3318.8,0.00682108]
[1642227583298,1.11650653,3319.1,3318.8,0.00682108]
[1642227583695,1.54084846,3319.2,3318.6,0.00795793]
[1642227583896,1.0,3319.1,3318.4,0.00909477]
[1642227584095,1.54084846,3319.2,3318.4,0.30909477]
[1642227584555,1.54084846,3319.2,3318.5,0.00852635]
[1642227585149,2.76132429,3319.2,3318.5,0.00852635]
[1642227585349,1.54084846,3319.2,3318.5,2.58546344]
[1642227585749,1.54084846,3319.2,3318.6,0.00795793]
[1642227585950,1.0,3319.7,3318.6,0.00795793]
[1642227586148,1.50870523,3319.8,3318.6,2.58489502]
[1642227586549,1.25943552,3319.4,3318.7,0.0073895]
[1642227587149,1.50870523,3319.8,3318.7,0.0073895]
[1642227587354,1.50870523,3319.8,3318.8,17.67]
[1642227587549,1.50870523,3319.8,3319.0,0.3]
[1642227587750,1.50870523,3319.8,3318.9,0.00625266]
[1642227587950,1.50870523,3319.8,3319.1,0.00511581]
[1642227588206,1.50870523,3319.8,3318.5,1.5087]
[1642227588207,1.46432722,3319.4,3318.6,0.00795793]
[1642227588399,1.46432722,3319.4,3318.6,19.0795602]
[1642227588597,1.46432722,3319.4,3319.0,2.57671992]
[1642227588999,1.46432722,3319.4,3319.1,0.00511581]
[1642227589199,1.0,3319.4,3319.1,0.00511581]
[1642227589399,1.0,3319.7,3319.1,0.00511581]
[1642227589600,1.50870523,3319.8,3319.1,0.00511581]
[1642227590003,1.50870523,3319.8,3319.0,0.00568423]
[1642227590801,4.29357647,3319.8,3319.0,0.00568423]
[1642227591202,1.0,3319.7,3319.0,0.00568423]
[1642227591603,3.8014205,3319.7,3319.1,2.57659758]
[1642227592041,4.1014205,3319.7,3319.2,0.00454739]
[1642227592241,1.3,3319.7,3319.2,0.00454739]
[1642227592442,1.0,3319.7,3319.2,0.00454739]
[1642227592842,1.0,3319.7,3319.0,1.42859586]
[1642227593041,1.0,3319.7,3318.7,0.0073895]
[1642227593245,1.0,3319.7,3319.1,0.00511581]
[1642227593443,1.0,3319.7,3318.7,2.63600618]
[1642227593642,1.0,3319.7,3318.7,3.24339568]
[1642227593843,1.0,3319.7,3318.8,0.00682108]
[1642227593844,1.51633738,3319.5,3318.8,0.00682108]
[1642227594043,1.41940324,3319.3,3318.8,0.00682108]
[1642227594244,1.51633738,3319.5,3318.6,0.00795793]
[1642227594445,1.0,3319.4,3318.6,0.00795793]
[1642227594645,1.51633738,3319.5,3318.6,0.00795793]
[1642227594845,1.51633738,3319.5,3318.9,2.57679079]
[1642227595248,1.51633738,3319.5,3319.0,0.00568423]
[1642227596091,1.51633738,3319.5,3318.8,0.00682108]
[1642227597292,1.51633738,3319.5,3318.7,0.0073895]
[1642227597692,1.51633738,3319.5,3318.2,0.01023162]
[1642227598293,1.51633738,3319.5,3318.2,18.43356162]
[1642227598493,1.51633738,3319.5,3318.3,2.62839037]
[1642227598698,1.53491744,3319.2,3318.3,4.45814852]
[1642227598895,1.53491744,3319.2,3318.4,0.00909477]
[1642227599944,1.53491744,3319.2,3318.5,2.57694248]
[1642227600448,1.43491744,3319.2,3318.6,0.00795793]
[1642227600744,1.53331278,3318.8,3318.6,0.00795793]
[1642227600945,1.27372371,3318.7,3318.6,0.00795793]
[1642227601344,2.27372371,3318.7,3318.6,0.00795793]
[1642227602147,2.27372371,3318.7,3318.6,2.58490041]
[1642227602950,2.27372371,3318.7,3318.6,0.00795793]
[1642227603392,2.27372371,3318.7,3318.1,0.01080004]
[1642227604092,2.87372371,3318.7,3318.0,0.01136847]
[1642227604292,2.87372371,3318.7,3317.9,0.01193689]
[1642227604491,1.26847856,3318.0,3317.9,0.01193689]
[1642227604694,5.79733497,3318.0,3317.9,0.01193689]
[1642227605192,1.49763379,3317.9,3317.1,1.54110563]
[1642227605392,1.49763379,3317.9,3317.2,0.00397896]
[1642227605393,2.76142647,3317.8,3317.2,0.00397896]
[1642227605598,1.0,3317.7,3317.2,0.00397896]
[1642227606194,2.49763379,3317.9,3317.2,0.00397896]
[1642227606394,5.27584122,3317.9,3317.2,0.00397896]
[1642227606794,5.34226294,3317.9,3317.2,2.58163751]
[1642227607042,5.29260187,3317.9,3317.2,2.58163751]
[1642227607341,5.66899866,3317.9,3317.3,0.00341054]
[1642227607542,6.22109866,3317.9,3317.3,0.00341054]
[1642227607744,6.59149866,3317.9,3317.3,2.58106909]
[1642227608149,6.59149866,3317.9,3317.4,0.00284212]
[1642227608343,1.50997815,3317.5,3317.4,0.00284212]
[1642227608543,2.7567335,3317.5,3317.4,0.00284212]
[1642227608944,3.7567335,3317.5,3317.4,0.00284212]
[1642227609144,3.7567335,3317.5,3316.9,0.00568424]
[1642227609344,1.0,3317.4,3316.9,0.00568424]
[1642227609549,0.75387,3317.3,3316.9,0.00568424]
[1642227609845,3.50996387,3317.3,3316.9,0.00568424]
[1642227610044,1.0,3317.2,3316.9,0.00568424]
[1642227610704,0.7538626,3317.3,3316.9,0.00568424]
[1642227611093,0.7538626,3317.3,3317.0,2.57765855]
[1642227611294,1.0,3317.4,3317.0,2.57765855]
[1642227611493,1.0,3317.4,3317.1,0.00454739]
[1642227611693,1.01564453,3317.5,3317.1,0.00454739]
[1642227611893,0.01564453,3317.5,3317.1,0.00454739]
[1642227612494,0.01564453,3317.5,3317.2,2.57765855]
[1642227612495,1.01564453,3317.5,3317.2,2.57765855]
[1642227612894,1.01564453,3317.5,3317.3,0.00341054]
[1642227614548,1.01564453,3317.5,3316.7,0.00682108]
[1642227615548,1.01564453,3317.5,3316.8,2.57765855]
[1642227615948,1.01564453,3317.5,3316.9,0.00568424]
[1642227616545,0.01564453,3317.5,3316.9,0.00568424]
[1642227617648,0.01564453,3317.5,3317.0,2.57765855]
[1642227618048,0.01564453,3317.5,3317.1,2.76463552]
[1642227618501,0.01564453,3317.5,3317.1,20.43463552]
[1642227618897,0.01564453,3317.5,3317.2,1.37070771]
[1642227619096,0.01564453,3317.5,3317.3,2.69315998]
[1642227619296,0.01564453,3317.5,3317.4,0.3]
[1642227619499,0.01564453,3317.5,3317.4,4.95284212]
[1642227620101,0.01564453,3317.5,3317.4,6.0600748]
[1642227621104,0.01564453,3317.5,3317.4,8.63773335]
[1642227623044,0.01564453,3317.5,3317.4,3.68773335]
[1642227623244,0.045463,3318.6,3317.5,4.6]
[1642227623447,0.045463,3318.6,3318.2,0.0121396]
[1642227623649,0.00341054,3318.5,3318.2,0.0121396]
[1642227624046,0.00284212,3318.4,3318.2,0.0121396]
[1642227624448,0.00227369,3318.3,3318.2,2.41347223]
[1642227624648,0.00227369,3318.3,3318.2,2.40133263]
[1642227625049,0.00227369,3318.3,3317.9,4.8912]
[1642227625248,0.00227369,3318.3,3318.0,0.3]
[1642227625548,0.00170527,3318.2,3317.9,5.66471303]
[1642227625792,0.00170527,3318.2,3318.0,2.60777556]
[1642227626092,0.00113685,3318.1,3318.0,5.31504628]
[1642227626299,0.00113685,3318.1,3318.0,22.98504628]
[1642227626993,0.00113685,3318.1,3318.0,22.68504628]
[1642227627193,0.00113685,3318.1,3318.0,5.01504628]
[1642227627592,0.00113685,3318.1,3318.0,8.88045931]
[1642227628395,0.00113685,3318.1,3318.0,2.60777556]
[1642227630444,0.00113685,3318.1,3318.0,20.27777556]
[1642227631244,0.00113685,3318.1,3318.0,2.60777556]
[1642227632047,0.00113685,3318.1,3317.9,1.1993]
[1642227637941,0.00113685,3318.1,3318.0,2.65802485]
[1642227638340,0.00113685,3318.1,3317.9,1.1993]
[1642227639942,0.00113685,3318.1,3318.0,2.57704181]
[1642227640891,0.00113685,3318.1,3317.6,2.57874708]
[1642227641291,0.00113685,3318.1,3317.7,0.00113685]
[1642227641895,0.00113685,3318.1,3317.7,1.17103685]
[1642227643092,0.00113685,3318.1,3317.8,2.57704181]
[1642227645046,0.00113685,3318.1,3317.7,1.17103685]
[1642227646549,1.43691526,3318.0,3317.7,1.17103685]
[1642227646950,1.43691526,3318.0,3317.7,0.00113685]
[1642227647149,2.66505614,3318.0,3317.7,0.00113685]
[1642227647349,2.66505614,3318.0,3317.6,2.5772875]
[1642227647350,0.045463,3317.8,3317.6,0.00170527]
[1642227647550,1.081763,3317.8,3317.7,0.00113685]
[1642227647749,1.081763,3317.8,3317.4,0.00284212]
[1642227647750,4.75918552,3317.8,3317.4,0.00284212]
[1642227647948,2.695463,3317.5,3317.0,2.58285494]
[1642227648202,0.045463,3317.1,3316.9,1.2337]
[1642227648397,1.48681916,3317.1,3316.5,3.209]
[1642227648596,2.44135616,3317.1,3317.0,0.00511581]
[1642227648796,2.48681916,3317.1,3317.0,0.00511581]
[1642227648997,2.48681916,3317.1,3316.4,0.00852635]
[1642227649400,0.045463,3316.8,3316.4,0.00852635]
[1642227649602,0.045463,3316.8,3316.2,0.0096632]
[1642227649997,0.045463,3316.8,3316.2,0.3096632]
[1642227650399,0.045463,3316.8,3316.3,0.00909478]
[1642227655145,0.045463,3316.8,3316.4,2.57786721]
[1642227655548,0.045463,3316.8,3316.5,0.00795793]
[1642227656593,0.045463,3317.1,3316.5,0.00795793]
[1642227656794,0.045463,3317.1,3316.3,0.00909478]
[1642227657602,0.045463,3317.1,3316.5,17.67]
[1642227658001,0.045463,3317.2,3316.6,1.22402699]
[1642227658498,0.045463,3317.2,3316.7,0.00682108]
[1642227658900,1.50979859,3317.4,3316.7,17.67682108]
[1642227659100,0.045463,3317.9,3316.9,17.67]
[1642227659299,0.045463,3317.9,3317.0,3.95531372]
[1642227659746,0.045463,3317.6,3317.1,3.11484739]
[1642227660251,0.045463,3317.6,3317.2,1.52258609]
[1642227660746,0.045463,3317.6,3317.3,0.00341054]
[1642227661547,1.0,3318.0,3317.3,20.26740658]
[1642227661948,0.00113685,3318.1,3317.4,0.00284212]
[1642227662148,0.045463,3318.0,3317.4,0.00284212]
[1642227662547,0.045463,3318.0,3317.4,18.81694212]
[1642227662758,0.045463,3318.0,3317.4,1.14694212]
[1642227662949,0.00113685,3318.1,3317.6,17.67]
[1642227663206,0.00113685,3318.1,3317.7,2.87466444]
[1642227663401,0.00113685,3318.1,3317.7,0.00113685]
[1642227664001,1.38411266,3318.1,3317.6,0.00170527]
[1642227664201,1.38411266,3318.1,3317.5,0.00227369]
[1642227664801,0.045463,3317.9,3317.5,0.00227369]
[1642227665605,0.045463,3317.9,3317.5,17.67227369]
[1642227666004,0.045463,3317.9,3317.6,0.00170527]
[1642227666605,0.00113685,3318.1,3317.6,0.00170527]
[1642227666806,0.00113685,3318.1,3317.4,18.8141]
[1642227666807,0.00113685,3318.1,3317.5,0.00227369]
[1642227667447,1.42486824,3317.9,3317.5,0.00227369]
[1642227668248,1.42486824,3317.9,3317.5,2.57947585]
[1642227668647,1.42486824,3317.9,3317.6,0.00170527]
[1642227669048,0.045463,3317.8,3317.6,0.00170527]
[1642227669249,0.045463,3317.8,3317.5,0.00227369]
[1642227669447,1.32988807,3317.7,3317.5,0.00227369]
[1642227669649,0.045463,3317.6,3317.5,0.00227369]
[1642227670148,1.25646271,3317.4,3316.9,0.00568424]
[1642227670553,0.045463,3317.3,3316.9,0.00568424]
[1642227671197,0.045463,3317.3,3317.0,2.57756235]
[1642227671598,0.045463,3317.3,3317.1,0.00454739]
[1642227672200,1.50934283,3318.4,3317.4,17.67]
[1642227672501,1.50934283,3318.4,3317.9,0.01236923]
[1642227672502,0.00113684,3318.3,3317.9,0.01236923]
[1642227673601,1.38351934,3318.1,3317.9,0.01236923]
[1642227673799,1.38351934,3318.1,3318.0,2.57717436]
[1642227674648,1.38351934,3318.1,3317.8,0.3]
[1642227675049,1.38351934,3318.1,3317.9,0.00113685]
[1642227675549,0.00113684,3318.3,3317.9,0.00113685]
[1642227675756,0.00113684,3318.3,3317.9,2.62588018]
[1642227676349,0.00113684,3318.3,3317.9,0.00113685]
[1642227677651,0.00113684,3318.3,3317.8,0.00170527]
[1642227677951,1.55543913,3318.0,3317.8,0.00170527]
[1642227678597,1.55543913,3318.0,3317.5,0.00341054]
[1642227678999,1.55543913,3318.0,3317.5,0.75687054]
[1642227679399,1.55543913,3318.0,3317.6,0.00284212]
[1642227680200,0.00113684,3318.3,3317.6,0.00284212]
[1642227680600,0.00113684,3318.3,3317.8,0.75339]
[1642227681004,0.00113684,3318.3,3317.9,0.00113685]
[1642227681201,1.42182241,3318.3,3317.9,0.00113685]
[1642227681603,0.00113684,3318.3,3317.9,2.65797615]
[1642227681804,0.00113684,3318.3,3317.9,3.86147615]
[1642227682248,1.50897842,3319.2,3317.9,3.86147615]
[1642227682449,1.50897842,3319.2,3318.0,0.00170527]
[1642227682649,1.11251383,3318.2,3318.0,0.00170527]
[1642227683451,1.11251383,3318.2,3317.9,0.00227369]
[1642227684453,1.00454739,3319.1,3317.9,2.57551197]
[1642227684653,0.00454739,3319.1,3317.9,3.81681197]
[1642227684854,0.00397897,3319.0,3318.0,0.00170527]
[1642227685254,0.00341054,3318.9,3318.0,0.00170527]
[1642227685717,0.00284212,3318.8,3318.0,0.00170527]
[1642227686106,0.0022737,3318.7,3318.0,0.00170527]
[1642227686504,1.18023017,3319.0,3318.0,0.00170527]
[1642227686505,0.00170527,3318.6,3318.0,0.00170527]
[1642227686703,0.00170527,3318.6,3318.0,2.57640069]
[1642227686905,0.00113685,3318.5,3318.0,0.00170527]
[1642227687104,0.00113685,3318.5,3317.9,1.2413]
[1642227687105,1.10742922,3318.5,3318.1,0.00113684]
[1642227687403,1.10742922,3318.5,3317.9,1.2413]
[1642227687404,1.10629237,3318.5,3318.0,0.00170527]
[1642227690047,1.10629237,3318.5,3318.0,3.40192694]
[1642227690248,1.10629237,3318.5,3318.0,2.64859694]
[1642227690449,1.10629237,3318.5,3318.1,0.00113684]
[1642227692652,1.10629237,3318.5,3318.0,0.00170527]
[1642227699455,1.10629237,3318.5,3318.0,2.57861874]
[1642227699657,1.10629237,3318.5,3318.0,20.24861874]
[1642227699851,1.10629237,3318.5,3318.1,2.5745338]
[1642227700052,1.10629237,3318.5,3318.1,0.00113684]
[1642227700705,1.10629237,3318.5,3318.1,2.62179545]
[1642227701001,1.10629237,3318.5,3318.1,6.44342052]
[1642227701201,1.5091606,3318.8,3318.1,26.69041448]
[1642227701401,1.5091606,3318.8,3318.3,0.045463]
[1642227701601,1.5091606,3318.8,3318.3,17.715463]
[1642227701602,0.0022737,3318.7,3318.3,17.715463]
[1642227701805,0.0022737,3318.7,3318.4,2.80504274]
[1642227702001,0.00170527,3318.6,3318.5,1.247]
[1642227702201,0.00170527,3318.6,3318.5,19.217]
[1642227702601,0.03994835,3320.1,3318.7,17.67]
[1642227702802,0.03994835,3320.1,3319.2,0.045463]
[1642227703002,0.00795793,3320.0,3319.2,0.045463]
[1642227703401,0.00738951,3319.9,3319.2,0.045463]
[1642227703803,0.00682109,3319.8,3319.3,2.57691347]
[1642227704203,1.17697333,3319.7,3319.3,2.57691347]
[1642227704651,0.00568424,3319.6,3319.3,2.57691347]
[1642227704853,0.00568424,3319.6,3319.2,0.045463]
[1642227705053,0.00511581,3319.5,3318.9,1.2122]
[1642227705253,0.00511581,3319.5,3319.0,2.7044164]
[1642227705453,0.00511581,3319.5,3318.3,4.240663]
[1642227705454,0.00454739,3319.4,3318.4,4.82311]
[1642227705754,0.00397897,3319.3,3318.4,4.4639]
[1642227706054,0.00341054,3319.2,3318.4,7.15922168]
[1642227706454,1.17007538,3318.8,3318.4,7.15922168]
[1642227706653,1.17007538,3318.8,3318.4,5.1324594]
[1642227706854,1.17007538,3318.8,3318.4,5.8856994]
[1642227707353,1.17007538,3318.8,3318.7,2.57667952]
[1642227707755,1.17121223,3318.8,3318.7,2.57667952]
[1642227709003,1.17121223,3318.8,3318.7,20.54667952]
[1642227709203,1.17121223,3318.8,3318.7,2.57667952]
[1642227714156,2.16921223,3318.8,3318.7,2.57667952]
[1642227714355,2.54567013,3318.8,3318.7,0.92347952]
[1642227714555,2.24567013,3318.8,3318.7,0.92347952]
[1642227714755,3.16921223,3318.8,3318.7,0.92347952]
[1642227715156,3.16921223,3318.8,3318.1,0.00113684]
[1642227715557,1.0,3318.7,3318.0,1.09962623]
[1642227715802,1.0,3318.7,3318.1,0.00284211]
[1642227716001,2.47121223,3318.8,3318.1,0.00284211]
[1642227716203,2.47121223,3318.8,3317.5,0.00625265]
[1642227716204,2.84901939,3318.7,3317.5,0.00625265]
[1642227716602,1.0,3318.6,3317.5,0.00625265]
[1642227716803,1.0,3318.6,3317.5,1.38648609]
[1642227717204,1.0,3318.6,3317.6,0.00568423]
[1642227717404,1.13366143,3318.1,3317.6,0.00568423]
[1642227717607,2.96652053,3318.0,3317.6,0.00568423]
[1642227717802,2.96652053,3318.0,3317.5,0.00625265]
[1642227718003,1.0,3317.9,3317.5,0.00625265]
[1642227718605,1.4027027,3317.6,3317.5,0.00625265]
[1642227719004,4.28781031,3317.6,3317.4,0.00682108]
[1642227719307,4.28781031,3317.6,3317.1,7.074]
[1642227719308,2.89733322,3317.5,3317.2,0.00795792]
[1642227719555,1.3889194,3317.4,3317.2,0.00795792]
[1642227719753,1.54354354,3317.1,3316.9,0.0096632]
[1642227720054,1.54354354,3317.1,3316.8,0.01023162]
[1642227721153,2.54354354,3317.1,3316.8,0.01023162]
[1642227721354,1.47336921,3316.9,3316.8,0.01023162]
[1642227721558,1.77336921,3316.9,3316.8,0.01023162]
[1642227723058,1.77336921,3316.9,3316.7,0.01080004]
[1642227723903,1.54354354,3317.1,3316.7,0.01080004]
[1642227724102,1.54354354,3317.1,3316.4,0.045463]
[1642227724501,1.54354354,3317.1,3316.5,0.01193689]
[1642227725705,2.54354354,3317.1,3316.5,0.01193689]
[1642227725901,1.54354354,3317.1,3316.5,0.01193689]
[1642227726102,1.0,3317.0,3316.5,0.01193689]
[1642227726301,2.54354354,3317.1,3316.5,0.01193689]
[1642227726502,1.44564752,3316.6,3316.5,0.01193689]
[1642227726955,1.0,3317.0,3316.5,0.01193689]
[1642227727154,1.75392,3317.3,3316.3,0.01307374]
[1642227727353,2.05392,3317.3,3316.3,0.01307374]
[1642227727553,0.3,3317.3,3316.3,0.01307374]
[1642227727752,1.50993537,3317.1,3316.3,0.01307374]
[1642227727955,2.84610038,3317.1,3316.3,0.01307374]
[1642227728357,1.0,3317.0,3316.3,0.01307374]
[1642227728856,1.0,3317.0,3316.3,1.53257023]
[1642227729254,1.0,3317.0,3316.4,0.01250531]
[1642227733410,1.0,3317.0,3316.4,1.23338334]
[1642227733608,1.0,3317.0,3316.4,3.82315928]
[1642227733809,1.50993537,3317.1,3316.5,2.59981908]
[1642227734207,1.50993537,3317.1,3316.6,0.01136847]
[1642227734456,4.26447747,3317.9,3316.6,0.01136847]
[1642227734657,1.26125406,3317.1,3316.6,0.01136847]
[1642227734856,1.26125406,3317.1,3316.7,1.51949649]
[1642227735355,1.26125406,3317.1,3316.8,0.01023162]
[1642227736357,1.26125406,3317.1,3316.5,0.01193689]
[1642227736758,1.26125406,3317.1,3316.9,2.57756923]
[1642227736959,1.0,3317.3,3316.9,2.57756923]
[1642227737158,1.0,3317.3,3317.0,0.00909477]
[1642227737159,0.3,3317.3,3317.0,0.00909477]
[1642227737358,0.6,3317.3,3317.0,0.00909477]
[1642227737558,0.3,3317.3,3317.0,0.00909477]
[1642227738207,1.09896841,3317.0,3316.7,0.01080004]
[1642227738401,0.3,3317.3,3316.7,0.01080004]
[1642227738607,1.3,3317.3,3316.7,0.01080004]
[1642227738802,0.3,3317.3,3317.1,2.57756923]
[1642227739003,1.3,3317.3,3317.1,2.57756923]
[1642227739203,0.3,3317.3,3317.2,0.00795792]
[1642227739403,2.60006515,3317.3,3317.2,0.00795792]
[1642227740105,2.60006515,3317.3,3316.9,0.0096632]
[1642227740504,2.60006515,3317.3,3317.2,2.57756923]
[1642227740906,1.3,3317.3,3317.2,2.58552715]
[1642227741306,1.3,3317.3,3317.2,0.00795792]
[1642227741707,1.0,3317.3,3317.1,0.00852635]
[1642227742180,0.3,3317.4,3317.1,0.00852635]
[1642227742382,1.50456246,3317.5,3316.7,0.01080004]
[1642227742680,1.50456246,3317.5,3316.5,0.01193689]
[1642227742880,2.50456246,3317.5,3316.5,0.01193689]
[1642227743081,3.25843246,3317.5,3316.5,0.01193689]
[1642227743688,2.50456246,3317.5,3316.5,0.01193689]
[1642227744488,2.50456246,3317.5,3316.6,2.57779114]
[1642227744884,2.50456246,3317.5,3316.7,0.01080004]
[1642227745908,3.25844246,3317.5,3316.7,0.01080004]
[1642227746508,3.25844246,3317.5,3316.5,0.01193689]
[1642227746711,1.0,3317.5,3316.5,0.01193689]
[1642227747109,0.36907651,3317.6,3316.5,0.01193689]
[1642227747507,0.36907651,3317.6,3316.6,2.57767798]
[1642227747911,0.36907651,3317.6,3316.7,2.61053683]
[1642227748109,0.36907651,3317.6,3316.7,0.01080004]
[1642227748409,0.36907651,3317.6,3316.9,1.53116481]
[1642227748811,0.36907651,3317.6,3317.0,0.00909477]
[1642227750254,0.36907651,3317.6,3317.2,3.03899298]
[1642227750457,0.36907651,3317.6,3317.5,2.27924474]